bitfinex/quotes_BTCUSD_20211001
["timestamp","ask_amount","ask_price","bid_price","bid_amount"]
[1633131395386,0.000709,48056.0,48054.0,0.0184]
[1633131395587,0.000709,48056.0,48055.0,1.31498088]
[1633131395787,0.000709,48056.0,48055.0,1.63663666]
[1633131395985,0.000709,48056.0,48055.0,1.79161075]
[1633131396185,0.26822404,48073.0,48056.0,0.7579363]
[1633131396186,0.05630204,48073.0,48056.0,0.7579363]
[1633131396391,0.0008,48075.0,48064.0,0.00122244]
[1633131396586,0.0008,48075.0,48069.0,0.311962]
[1633131396786,0.0008,48075.0,48074.0,0.19521333]
[1633131396987,0.09626551,48074.0,48073.0,0.23835072]
[1633131397187,0.0008,48075.0,48073.0,0.40533234]
[1633131397386,0.0008,48075.0,48074.0,0.17260542]
[1633131397890,0.004955,48075.0,48074.0,0.19100542]
[1633131398689,0.08186613,48075.0,48074.0,0.19100542]
[1633131398892,0.11486613,48075.0,48074.0,0.20800542]
[1633131399285,0.11112715,48075.0,48074.0,0.20800542]
[1633131399492,0.11112715,48075.0,48074.0,0.06947986]
[1633131400285,0.07812715,48075.0,48074.0,0.05247986]
[1633131400491,0.00121602,48075.0,48074.0,0.215413]
[1633131400889,0.03221602,48075.0,48074.0,0.237413]
[1633131401492,0.12538022,48075.0,48074.0,0.237413]
[1633131402090,0.03221602,48075.0,48074.0,0.237413]
[1633131402892,0.00121602,48075.0,48074.0,0.241413]
[1633131403291,0.00121602,48075.0,48074.0,0.20733314]
[1633131403490,0.00495507,48075.0,48074.0,0.20733314]
[1633131404095,0.00495507,48075.0,48074.0,0.18133314]
[1633131404889,0.00495507,48075.0,48074.0,0.243413]
[1633131404890,0.00121602,48075.0,48074.0,0.243413]
[1633131405493,0.00121602,48075.0,48074.0,0.08047986]
[1633131406092,0.00121602,48075.0,48074.0,0.05247986]
[1633131406891,0.00121602,48075.0,48074.0,0.07847986]
[1633131407493,0.0029466,48075.0,48074.0,0.06007986]
[1633131407692,0.7542676,48075.0,48074.0,0.06007986]
[1633131408093,0.96962418,48075.0,48074.0,0.06007986]
[1633131408293,0.96962418,48075.0,48074.0,0.03407986]
[1633131408899,0.9733633,48075.0,48066.0,0.40380422]
[1633131409095,0.7281003,48071.0,48066.0,0.21592189]
[1633131409302,0.00032099,48067.0,48066.0,0.21592189]
[1633131409494,0.00032099,48067.0,48065.0,0.0184]
[1633131409895,0.0003091,48066.0,48065.0,0.0184]
[1633131410696,0.0003091,48066.0,48065.0,0.22094132]
[1633131410894,0.0003091,48066.0,48065.0,0.23294132]
[1633131412296,0.0003091,48066.0,48065.0,0.22094132]
[1633131412895,0.0003091,48066.0,48065.0,0.23594132]
[1633131413497,0.0003091,48066.0,48065.0,0.17559989]
[1633131414302,0.00401718,48066.0,48065.0,0.16059989]
[1633131414902,0.00401718,48066.0,48065.0,0.17559989]
[1633131415502,0.00401718,48066.0,48065.0,0.015]
[1633131415704,0.22843832,48066.0,48065.0,0.015]
[1633131415903,0.59682437,48066.0,48065.0,0.015]
[1633131416105,0.90889237,48066.0,48065.0,0.015]
[1633131416304,0.90889237,48066.0,48046.0,3.9077]
[1633131416305,0.68,48065.0,48046.0,3.9077]
[1633131416504,0.00121394,48055.0,48050.0,0.18308259]
[1633131416702,0.00121394,48055.0,48046.0,3.9077]
[1633131416901,0.20809,48052.0,48046.0,3.46260231]
[1633131417169,8.325e-05,48047.0,48046.0,2.42040231]
[1633131417365,8.325e-05,48047.0,48046.0,2.70525898]
[1633131417567,8.325e-05,48047.0,48046.0,2.77991287]
[1633131417770,8.325e-05,48047.0,48046.0,3.00311287]
[1633131417971,8.325e-05,48047.0,48046.0,4.12551287]
[1633131418167,8.325e-05,48047.0,48046.0,4.3715334]
[1633131418366,8.325e-05,48047.0,48046.0,4.97525688]
[1633131418566,8.325e-05,48047.0,48046.0,5.19502065]
[1633131418969,8.325e-05,48047.0,48046.0,5.23302065]
[1633131419170,8.325e-05,48047.0,48046.0,4.12902065]
[1633131419770,0.00372184,48047.0,48046.0,4.12902065]
[1633131420171,0.00372184,48047.0,48046.0,3.98507129]
[1633131420776,0.00372184,48047.0,48046.0,3.67297129]
[1633131420975,0.00372184,48047.0,48046.0,1.42207129]
[1633131421369,8.325e-05,48047.0,48046.0,1.42207129]
[1633131421570,8.325e-05,48047.0,48046.0,1.32981231]
[1633131422171,8.325e-05,48047.0,48046.0,1.60891831]
[1633131422375,8.325e-05,48047.0,48046.0,1.29681231]
[1633131422572,8.325e-05,48047.0,48046.0,1.86721231]
[1633131422772,8.325e-05,48047.0,48046.0,1.95930197]
[1633131422973,8.325e-05,48047.0,48046.0,1.99630197]
[1633131423171,8.325e-05,48047.0,48046.0,1.98630197]
[1633131424373,8.325e-05,48047.0,48046.0,1.94930197]
[1633131424977,8.325e-05,48047.0,48046.0,1.86505133]
[1633131425175,0.0037219,48047.0,48046.0,2.96905133]
[1633131425574,0.0037219,48047.0,48046.0,3.19225133]
[1633131425975,0.0037219,48047.0,48046.0,3.29516963]
[1633131426375,0.0037219,48047.0,48046.0,3.26216963]
[1633131426777,8.325e-05,48047.0,48046.0,3.26216963]
[1633131426977,8.325e-05,48047.0,48046.0,3.19125133]
[1633131428379,8.325e-05,48047.0,48046.0,3.15925133]
[1633131428776,8.325e-05,48047.0,48046.0,3.1664689]
[1633131428976,8.325e-05,48047.0,48046.0,3.1984689]
[1633131430377,8.325e-05,48047.0,48046.0,3.1664689]
[1633131430580,0.00372197,48047.0,48046.0,3.1664689]
[1633131430780,0.00372197,48047.0,48046.0,1.8392689]
[1633131430977,0.00372197,48047.0,48046.0,2.0954689]
[1633131431379,0.00372197,48047.0,48046.0,2.3954689]
[1633131431578,0.00372197,48047.0,48046.0,2.38825133]
[1633131432181,0.20804,48058.0,48047.0,1.31667803]
[1633131432380,0.20804,48058.0,48054.0,0.1716974]
[1633131432579,0.20804,48058.0,48056.0,0.312056]
[1633131433579,0.15369379,48062.0,48057.0,0.24780511]
[1633131433779,0.00121509,48069.0,48057.0,0.24780511]
[1633131433981,0.00121509,48069.0,48058.0,0.0184]
[1633131434382,0.00014268,48059.0,48058.0,0.0184]
[1633131434980,0.00014268,48059.0,48058.0,0.0484]
[1633131436387,0.00014268,48059.0,48058.0,0.0184]
[1633131436986,0.00014268,48059.0,48058.0,0.0494]
[1633131437790,0.00014268,48059.0,48058.0,0.20785238]
[1633131437995,0.00014268,48059.0,48058.0,2.33255697]
[1633131438190,0.00014268,48059.0,48058.0,2.17410459]
[1633131438391,0.00014268,48059.0,48058.0,2.14310459]
[1633131438990,0.00014268,48059.0,48058.0,2.17610459]
[1633131439790,0.00014268,48059.0,48058.0,1.81610459]
[1633131440390,0.00014268,48059.0,48058.0,1.78310459]
[1633131440988,0.00014268,48059.0,48058.0,1.81610459]
[1633131441591,0.00014268,48059.0,48058.0,1.780132]
[1633131442391,0.00014268,48059.0,48058.0,1.747132]
[1633131442790,0.00014268,48059.0,48058.0,0.643132]
[1633131442991,0.00014268,48059.0,48058.0,0.675132]
[1633131443390,0.00014268,48059.0,48058.0,0.71110459]
[1633131444995,0.00014268,48059.0,48058.0,0.71210459]
[1633131446394,0.00014268,48059.0,48058.0,0.67910459]
[1633131446992,0.00014268,48059.0,48058.0,0.70910459]
[1633131447193,0.00014268,48059.0,48058.0,0.673132]
[1633131448399,0.00014268,48059.0,48058.0,0.643132]
[1633131448795,0.00014268,48059.0,48058.0,0.67910459]
[1633131448998,0.00014268,48059.0,48058.0,0.71010459]
[1633131450401,0.00014268,48059.0,48058.0,0.67910459]
[1633131451003,0.00014268,48059.0,48058.0,0.71110459]
[1633131452402,0.00014268,48059.0,48058.0,0.67910459]
[1633131452601,0.00014268,48059.0,48058.0,0.643132]
[1633131453002,0.00014268,48059.0,48058.0,0.678132]
[1633131453607,0.00014268,48059.0,48058.0,1.782132]
[1633131454405,0.00014268,48059.0,48058.0,1.78310459]
[1633131455005,0.00014268,48059.0,48058.0,1.81710459]
[1633131456409,0.00014268,48059.0,48058.0,1.78310459]
[1633131457017,0.00014268,48059.0,48058.0,0.71110459]
[1633131458211,0.00014268,48059.0,48058.0,0.675132]
[1633131458412,0.00014268,48059.0,48058.0,0.643132]
[1633131459011,0.00014268,48059.0,48058.0,0.674132]
[1633131459815,0.00014268,48059.0,48058.0,0.71010459]
[1633131460414,0.00014268,48059.0,48058.0,0.67910459]
[1633131461215,0.00014268,48059.0,48058.0,0.71010459]
[1633131462414,0.00014268,48059.0,48058.0,0.67910459]
[1633131463215,0.00014268,48059.0,48058.0,0.71010459]
[1633131463614,0.00014268,48059.0,48058.0,0.674132]
[1633131464416,0.00014268,48059.0,48058.0,0.643132]
[1633131465217,0.00014268,48059.0,48058.0,0.675132]
[1633131465419,0.00014268,48059.0,48058.0,0.71110459]
[1633131466418,0.00014268,48059.0,48058.0,0.67910459]
[1633131467219,0.00014268,48059.0,48058.0,0.71110459]
[1633131467422,0.00014268,48059.0,48058.0,0.77279362]
[1633131468421,0.00014268,48059.0,48058.0,0.74079362]
[1633131468820,0.00014268,48059.0,48058.0,0.84079362]
[1633131469027,0.00014268,48059.0,48058.0,0.80482103]
[1633131469226,0.00014268,48059.0,48058.0,0.83682103]
[1633131469821,0.00014268,48059.0,48058.0,0.90448483]
[1633131470525,0.00014268,48059.0,48058.0,0.8107958]
[1633131470923,0.00014268,48059.0,48058.0,0.84676839]
[1633131471123,0.00014268,48059.0,48058.0,0.81410459]
[1633131472525,0.00014268,48059.0,48058.0,0.77910459]
[1633131472723,0.00014268,48059.0,48058.0,0.85844932]
[1633131472923,0.00014268,48059.0,48058.0,0.77910459]
[1633131473122,0.00014268,48059.0,48058.0,0.80910459]
[1633131474329,0.00014268,48059.0,48058.0,0.86114644]
[1633131474724,0.00014268,48059.0,48058.0,0.773132]
[1633131475124,0.00014268,48059.0,48058.0,0.774132]
[1633131476323,0.00014268,48059.0,48058.0,0.743132]
[1633131476525,0.00014268,48059.0,48058.0,0.77910459]
[1633131477122,0.00014268,48059.0,48058.0,0.81010459]
[1633131478523,0.00014268,48059.0,48058.0,0.77910459]
[1633131478723,0.00014268,48059.0,48058.0,0.82825459]
[1633131479124,0.00014268,48059.0,48058.0,0.86125459]
[1633131480323,0.00014268,48059.0,48058.0,0.825282]
[1633131480727,0.00014268,48059.0,48058.0,0.84810952]
[1633131481123,0.00014268,48059.0,48058.0,0.87910952]
[1633131481924,0.00014268,48059.0,48058.0,0.91508211]
[1633131482526,0.00014268,48059.0,48058.0,0.88408211]
[1633131483126,0.00014268,48059.0,48058.0,0.91708211]
[1633131484133,0.22463234,48059.0,48058.0,0.78251588]
[1633131484332,0.47918978,48059.0,48058.0,0.78251588]
[1633131484533,0.79130178,48059.0,48058.0,0.78251588]
[1633131484733,1.00740878,48059.0,48058.0,0.68251588]
[1633131484930,1.00740878,48059.0,48058.0,0.18935387]
[1633131484931,1.20046533,48059.0,48058.0,0.18935387]
[1633131485133,1.23946533,48059.0,48058.0,0.15635387]
[1633131485332,0.75,48058.0,48047.0,0.56667803]
[1633131485531,0.00121166,48048.0,48047.0,0.56667803]
[1633131485731,0.17450367,48048.0,48047.0,0.56667803]
[1633131486331,0.37405715,48048.0,48047.0,0.56667803]
[1633131486530,0.66335124,48048.0,48047.0,0.56667803]
[1633131486931,0.38092149,48048.0,48047.0,0.56667803]
[1633131487132,0.40692149,48048.0,48047.0,0.59267803]
[1633131487337,0.20050367,48048.0,48047.0,0.59267803]
[1633131487534,0.19929201,48048.0,48047.0,0.59267803]
[1633131487932,0.19929201,48048.0,48047.0,0.83774005]
[1633131488534,0.19929201,48048.0,48047.0,0.85577306]
[1633131488731,0.17329201,48048.0,48047.0,0.82977306]
[1633131488932,0.17329201,48048.0,48047.0,0.58471104]
[1633131489133,0.19929201,48048.0,48047.0,0.60871104]
[1633131490132,0.17929201,48048.0,48047.0,0.60871104]
[1633131490733,0.15329201,48048.0,48047.0,0.58471104]
[1633131491135,0.19810024,48048.0,48047.0,0.59067803]
[1633131492338,0.19810024,48048.0,48047.0,0.58567803]
[1633131493137,0.19910024,48048.0,48047.0,0.58667803]
[1633131493936,0.17929201,48048.0,48047.0,0.60471104]
[1633131494541,0.17929201,48048.0,48047.0,0.57971104]
[1633131494738,0.15329201,48048.0,48047.0,0.57971104]
[1633131495219,0.17929201,48048.0,48047.0,0.60471104]
[1633131495819,0.17929201,48048.0,48047.0,0.04303301]
[1633131496613,0.17929201,48048.0,48043.0,0.7341]
[1633131496614,0.17310031,48048.0,48043.0,1.04626]
[1633131496814,0.17310031,48048.0,48043.0,0.31216]
[1633131497013,0.17310031,48048.0,48043.0,0.51230147]
[1633131497213,0.20010031,48048.0,48043.0,0.53730147]
[1633131498015,0.20010031,48048.0,48043.0,0.33716]
[1633131498616,0.17310031,48048.0,48043.0,0.31216]
[1633131499216,0.20485517,48046.0,48043.0,0.33716]
[1633131499415,0.15437986,48045.0,48043.0,0.35520414]
[1633131500013,0.15437986,48045.0,48044.0,0.54]
[1633131500614,0.15437986,48045.0,48044.0,0.1]
[1633131500813,0.1660759,48049.0,48044.0,0.1]
[1633131501014,0.18107225,48047.0,48044.0,0.1]
[1633131501214,0.018,48045.0,48044.0,0.133]
[1633131501415,0.17658915,48045.0,48044.0,0.133]
[1633131502217,0.19638653,48045.0,48044.0,0.133]
[1633131502613,0.17838653,48045.0,48044.0,0.412142]
[1633131503213,0.17838653,48045.0,48044.0,0.446142]
[1633131504214,0.17594718,48045.0,48044.0,0.446142]
[1633131504816,0.17539294,48049.0,48044.0,0.446142]
[1633131505015,0.17539294,48049.0,48044.0,0.43018837]
[1633131505217,0.17539294,48049.0,48044.0,0.46518837]
[1633131506619,0.17539294,48049.0,48044.0,0.43018837]
[1633131507217,0.19639294,48049.0,48044.0,0.45118837]
[1633131507618,0.01980478,48048.0,48044.0,0.433142]
[1633131508624,0.01980478,48048.0,48044.0,0.412142]
[1633131509221,0.04080478,48048.0,48044.0,0.439142]
[1633131510026,0.04080478,48048.0,48044.0,0.127]
[1633131510027,0.31033756,48046.0,48044.0,0.127]
[1633131510230,0.41625394,48045.0,48044.0,0.127]
[1633131510426,0.41752411,48045.0,48044.0,0.027]
[1633131510626,0.41752411,48045.0,48039.0,0.000533]
[1633131510830,0.20141711,48045.0,48039.0,0.000533]
[1633131511025,0.00052987,48044.0,48039.0,0.000533]
[1633131511225,0.00128581,48040.0,48039.0,0.015533]
[1633131511425,0.24053473,48040.0,48039.0,0.015533]
[1633131511627,0.41349865,48040.0,48039.0,0.01560437]
[1633131512427,0.63013552,48040.0,48039.0,0.01560437]
[1633131513224,0.67013552,48040.0,48039.0,0.00060437]
[1633131513430,0.78792354,48040.0,48039.0,0.00060437]
[1633131513628,1.10017454,48040.0,48039.0,0.00060437]
[1633131513826,1.32337454,48040.0,48039.0,0.00060437]
[1633131514024,1.06017454,48040.0,48039.0,0.00060437]
[1633131515425,1.09817454,48040.0,48039.0,0.00060437]
[1633131515830,1.32637161,48040.0,48039.0,0.00060437]
[1633131516028,1.32637161,48040.0,48039.0,0.01867522]
[1633131516627,1.28837161,48040.0,48039.0,0.01867522]
[1633131517228,1.32737161,48040.0,48039.0,0.01867522]
[1633131517927,1.09864467,48040.0,48039.0,0.01867522]
[1633131518533,1.05964467,48040.0,48039.0,0.00060437]
[1633131518928,1.2381488,48040.0,48039.0,0.00060437]
[1633131519326,1.2791488,48040.0,48039.0,0.00060437]
[1633131519728,1.5023488,48040.0,48039.0,0.00060437]
[1633131520731,1.4613488,48040.0,48039.0,0.00060437]
[1633131521329,1.4953488,48040.0,48039.0,0.00060437]
[1633131521533,1.4953488,48040.0,48039.0,0.01867522]
[1633131522729,1.4613488,48040.0,48039.0,0.01867522]
[1633131523333,1.4953488,48040.0,48039.0,0.01867522]
[1633131523932,1.4953488,48040.0,48039.0,0.00060437]
[1633131524332,1.37756078,48040.0,48039.0,0.00037626]
[1633131524536,1.37756078,48040.0,48039.0,7.137e-05]
[1633131524733,1.34356078,48040.0,48039.0,7.137e-05]
[1633131525333,1.37856078,48040.0,48039.0,7.137e-05]
[1633131526636,1.34356078,48040.0,48039.0,7.137e-05]
[1633131527035,1.34356078,48040.0,48039.0,0.01814222]
[1633131527234,1.45673499,48040.0,48039.0,0.01814222]
[1633131527440,1.49173499,48040.0,48039.0,0.01814222]
[1633131528537,1.45673499,48040.0,48039.0,0.01814222]
[1633131529336,1.48673499,48040.0,48039.0,7.137e-05]
[1633131529537,1.37356078,48040.0,48039.0,7.137e-05]
[1633131530439,1.37356078,48040.0,48020.0,2.1472]
[1633131530642,0.20940691,48031.0,48020.0,2.1472]
[1633131530838,0.312306,48027.0,48020.0,2.1472]
[1633131531104,0.35346418,48026.0,48023.0,0.1]
[1633131531439,0.35346418,48026.0,48025.0,0.75016658]
[1633131531640,0.17544252,48030.0,48025.0,0.75016658]
[1633131532042,0.208204,48027.0,48023.0,0.1]
[1633131532240,0.15638957,48026.0,48023.0,0.1]
[1633131532837,0.36218245,48026.0,48023.0,0.1]
[1633131533438,0.36218245,48026.0,48023.0,0.133]
[1633131533845,0.312271,48025.0,48023.0,0.133]
[1633131534039,0.15234514,48024.0,48023.0,0.133]
[1633131534639,0.15234514,48024.0,48023.0,0.1]
[1633131535043,0.17206597,48024.0,48023.0,0.1]
[1633131535443,0.17206597,48024.0,48023.0,0.04]
[1633131535843,0.38870284,48024.0,48023.0,0.04]
[1633131536041,0.63654569,48024.0,48023.0,0.04]
[1633131536642,0.63654569,48024.0,48019.0,0.0002]
[1633131536845,0.44993144,48022.0,48019.0,0.0002]
[1633131537115,0.37653574,48021.0,48019.0,0.0002]
[1633131537244,0.15732976,48020.0,48019.0,0.0002]
[1633131537444,0.15732976,48020.0,48019.0,0.0032]
[1633131538048,0.15732976,48020.0,48019.0,0.02135769]
[1633131538243,0.37343676,48020.0,48019.0,0.02135769]
[1633131538645,0.37343676,48020.0,48014.0,0.22842686]
[1633131538842,0.15732976,48020.0,48014.0,0.22842686]
[1633131539049,0.15732976,48020.0,48014.0,0.17159481]
[1633131539443,0.15732976,48020.0,48014.0,0.17459481]
[1633131539444,0.312349,48017.0,48014.0,0.17459481]
[1633131539649,0.15631092,48016.0,48014.0,0.17459481]
[1633131539848,0.21325188,48015.0,48014.0,0.17459481]
[1633131540045,0.36884641,48015.0,48014.0,0.17459481]
[1633131540245,0.36884641,48015.0,48014.0,0.17489234]
[1633131540444,0.39761315,48015.0,48014.0,0.17489234]
[1633131540647,0.70995915,48015.0,48014.0,0.27489234]
[1633131541246,0.70995915,48015.0,48014.0,0.27189234]
[1633131541445,0.72495915,48015.0,48014.0,0.30589234]
[1633131542847,0.72495915,48015.0,48014.0,0.13429753]
[1633131543246,0.72495915,48015.0,48014.0,0.10029753]
[1633131543247,0.70995915,48015.0,48014.0,0.10029753]
[1633131543449,0.69719241,48015.0,48014.0,0.14339866]
[1633131543650,0.69719241,48015.0,48014.0,0.04339866]
[1633131544050,0.68119241,48015.0,48014.0,0.00939866]
[1633131545049,0.89729941,48015.0,48014.0,0.00939866]
[1633131545247,0.9677006,48015.0,48014.0,0.00939866]
[1633131545449,0.99423047,48015.0,48014.0,0.01539866]
[1633131545651,1.02299727,48015.0,48014.0,0.00629753]
[1633131546860,0.99699727,48015.0,48014.0,0.00029753]
[1633131547251,0.92659608,48015.0,48014.0,0.00029753]
[1633131547452,0.96859608,48015.0,48014.0,0.00029753]
[1633131547858,0.96859608,48015.0,48005.0,0.0002]
[1633131547859,0.45,48013.0,48005.0,0.0002]
[1633131548057,0.00128719,48006.0,48005.0,0.0002]
[1633131548457,0.00128719,48006.0,48005.0,0.00030713]
[1633131548656,0.00181706,48006.0,48005.0,0.00030713]
[1633131548856,0.16938205,48006.0,48005.0,0.00030713]
[1633131549055,0.16938205,48006.0,48005.0,0.00944837]
[1633131549459,0.19638205,48006.0,48005.0,0.00944837]
[1633131550656,0.16938205,48006.0,48005.0,0.00944837]
[1633131550859,0.16938205,48006.0,47996.0,0.0002]
[1633131550860,0.14580816,47998.0,47996.0,0.0002]
[1633131551057,0.30125803,47998.0,47996.0,0.0002]
[1633131551260,0.30125803,47998.0,47997.0,0.00029525]
[1633131551261,0.33453315,47998.0,47997.0,0.00029525]
[1633131551458,0.36026513,47998.0,47997.0,0.00029525]
[1633131551656,0.20481526,47998.0,47997.0,0.24029525]
[1633131551855,0.20481526,47998.0,47997.0,0.00029525]
[1633131552258,0.20481526,47998.0,47997.0,0.08740139]
[1633131552656,0.17781526,47998.0,47997.0,0.08740139]
[1633131553457,0.18681526,47998.0,47997.0,0.08740139]
[1633131554058,0.18681526,47998.0,47997.0,0.00029525]
[1633131554458,0.15354014,47998.0,47997.0,0.00490154]
[1633131554660,0.14454014,47998.0,47997.0,0.00490154]
[1633131555459,0.17054014,47998.0,47997.0,0.00490154]
[1633131556660,0.17781533,47998.0,47997.0,0.00029525]
[1633131557461,0.19681533,47998.0,47997.0,0.00029525]
[1633131558661,0.17781533,47998.0,47997.0,0.00029525]
[1633131559459,0.19581533,47998.0,47997.0,0.00029525]
[1633131559864,0.16254014,47998.0,47997.0,0.00490154]
[1633131560862,0.14454014,47998.0,47997.0,0.00490154]
[1633131561264,0.00127279,48012.0,47999.0,0.19972651]
[1633131561466,0.0297664,48027.0,48004.0,0.75123797]
[1633131561467,0.520837,48020.0,48004.0,0.75123797]
[1633131561671,0.520837,48020.0,48004.0,0.01963797]
[1633131562266,0.05219952,48005.0,48004.0,0.32506872]
[1633131562468,0.05219952,48005.0,48004.0,0.42625995]
[1633131562663,0.05219952,48005.0,48004.0,0.20241999]
[1633131563475,0.07919952,48005.0,48004.0,0.20241999]
[1633131564268,0.07919952,48005.0,48004.0,0.10122876]
[1633131564666,0.05219952,48005.0,48004.0,0.10122876]
[1633131565169,0.05219952,48005.0,48004.0,0.32980586]
[1633131565368,0.01889674,48005.0,48004.0,0.32980586]
[1633131565968,0.01889674,48005.0,48004.0,0.10122876]
[1633131567373,0.01889674,48005.0,48004.0,0.0184]
[1633131567573,0.03889674,48005.0,48004.0,0.0184]
[1633131567773,0.07219959,48005.0,48004.0,0.0184]
[1633131568371,0.07219959,48005.0,48004.0,0.11499974]
[1633131569374,0.05219959,48005.0,48004.0,0.11499974]
[1633131569573,0.06919959,48005.0,48004.0,0.11499974]
[1633131570176,0.06740167,48005.0,48004.0,0.56499974]
[1633131570373,0.06740167,48005.0,48004.0,0.11499974]
[1633131570574,0.06740167,48005.0,48004.0,0.0184]
[1633131570976,0.01709882,48005.0,48004.0,0.0184]
[1633131571577,0.22460888,48005.0,48004.0,0.0184]
[1633131572782,0.19860888,48005.0,48004.0,0.0184]
[1633131573233,0.23191179,48005.0,48004.0,0.0184]
[1633131573433,0.25791179,48005.0,48004.0,0.0184]
[1633131574832,0.23191179,48005.0,48004.0,0.0184]
[1633131575032,0.05040173,48005.0,48004.0,0.0184]
[1633131575437,0.07340173,48005.0,48004.0,0.0184]
[1633131576035,0.24706316,48005.0,48004.0,0.0184]
[1633131576443,0.21376025,48005.0,48004.0,0.0184]
[1633131576842,0.04009882,48005.0,48004.0,0.0184]
[1633131577443,0.03909882,48005.0,48004.0,0.0184]
[1633131578444,0.0724018,48005.0,48004.0,0.0184]
[1633131578846,0.0504018,48005.0,48004.0,0.0184]
[1633131579446,0.0744018,48005.0,48004.0,0.0184]
[1633131580846,0.0504018,48005.0,48004.0,0.0184]
[1633131581447,0.0754018,48005.0,48004.0,0.0184]
[1633131581847,0.04209882,48005.0,48004.0,0.0184]
[1633131582856,0.01709882,48005.0,48004.0,0.0184]
[1633131583450,0.04209882,48005.0,48004.0,0.0184]
[1633131583850,0.07540187,48005.0,48004.0,0.0184]
[1633131584852,0.05040187,48005.0,48004.0,0.17312692]
[1633131585452,0.07240187,48005.0,48004.0,0.17312692]
[1633131586254,0.07240187,48005.0,48004.0,0.0184]
[1633131586453,0.07240187,48005.0,48004.0,0.17314321]
[1633131586852,0.05040187,48005.0,48004.0,0.17314321]
[1633131587454,0.03809882,48005.0,48004.0,0.17314321]
[1633131588054,0.03809882,48005.0,48004.0,0.11283825]
[1633131588255,0.03809882,48005.0,48004.0,0.17315725]
[1633131588656,0.03809882,48005.0,48004.0,0.11283825]
[1633131588859,0.01709882,48005.0,48004.0,0.11283825]
[1633131589455,0.05040194,48005.0,48004.0,0.11283825]
[1633131589655,0.07140194,48005.0,48004.0,0.11283825]
[1633131590857,0.05040194,48005.0,48004.0,0.11283825]
[1633131591655,0.07140194,48005.0,48004.0,0.11283825]
[1633131592854,0.01709882,48005.0,48004.0,0.11283825]
[1633131593656,0.03709882,48005.0,48004.0,0.11283825]
[1633131594855,0.01709882,48005.0,48004.0,0.11283825]
[1633131595059,0.050402,48005.0,48004.0,0.11283825]
[1633131595658,0.070402,48005.0,48004.0,0.11283825]
[1633131596860,0.050402,48005.0,48004.0,0.11283825]
[1633131597662,0.071402,48005.0,48004.0,0.11283825]
[1633131598064,0.07193187,48005.0,48004.0,0.11283825]
[1633131598867,0.071402,48005.0,48004.0,0.11283825]
[1633131599064,0.050402,48005.0,48004.0,0.11283825]
[1633131599470,0.05093187,48005.0,48004.0,0.15482686]
[1633131599667,0.07693187,48005.0,48003.0,0.06037447]
[1633131600063,0.15544516,48004.0,48003.0,0.06037447]
[1633131600265,0.46789816,48004.0,48003.0,0.06037447]
[1633131600465,0.46789816,48004.0,48003.0,0.58739467]
[1633131600466,0.00052987,48004.0,48003.0,0.58739467]
[1633131600666,0.076402,48005.0,48003.0,0.14739467]
[1633131600868,0.076402,48005.0,48003.0,0.06037512]
[1633131600869,0.050402,48005.0,48003.0,0.06037512]
[1633131601668,0.00052987,48004.0,48003.0,0.06037512]
[1633131602269,0.00052987,48004.0,48002.0,0.06037504]
[1633131603671,0.02552987,48004.0,48001.0,0.06035415]
[1633131605071,0.00052987,48003.0,48001.0,0.06035415]
[1633131605269,0.00052987,48004.0,48001.0,0.06035415]
[1633131605471,0.258693,48005.0,48001.0,0.06035415]
[1633131605674,0.025,48003.0,48000.0,0.06034286]
[1633131605877,0.2060185,48001.0,48000.0,0.14728763]
[1633131606772,0.2060185,48001.0,47999.0,0.26006413]
[1633131607172,0.2060185,48001.0,48000.0,0.14730474]
[1633131607372,0.2060185,48001.0,48000.0,0.14730503]
[1633131607572,0.2300185,48001.0,48000.0,0.14730503]
[1633131608371,0.3300185,48001.0,48000.0,0.14730503]
[1633131608574,0.3300185,48001.0,47999.0,0.26006023]
[1633131608972,0.3060185,48001.0,47999.0,0.26006023]
[1633131609571,0.3300185,48001.0,47999.0,0.26006023]
[1633131609773,0.3300185,48001.0,48000.0,0.39031714]
[1633131609972,0.3300185,48001.0,48000.0,0.00031714]
[1633131610773,0.3060185,48001.0,48000.0,0.00031714]
[1633131610975,0.1,48001.0,48000.0,0.27031714]
[1633131611575,0.1,48001.0,48000.0,0.00031714]
[1633131611779,0.1,48001.0,48000.0,0.14783472]
[1633131611978,0.1,48001.0,48000.0,0.39333848]
[1633131612179,0.1,48001.0,48000.0,0.50957104]
[1633131612376,0.1,48001.0,48000.0,0.35267542]
[1633131613178,0.1,48001.0,48000.0,0.35141155]
[1633131613579,0.1,48001.0,48000.0,0.38341155]
[1633131614980,0.1,48001.0,48000.0,0.35141155]
[1633131615578,0.1,48001.0,48000.0,0.38341155]
[1633131617178,0.1,48001.0,48000.0,0.35141155]
[1633131617379,0.1,48001.0,48000.0,0.3262034]
[1633131617578,0.1,48001.0,48000.0,0.3572034]
[1633131618981,0.1,48001.0,48000.0,0.3262034]
[1633131619588,0.1,48001.0,48000.0,0.3582034]
[1633131619785,0.1,48001.0,48000.0,0.11269964]
[1633131620782,0.1,48001.0,48000.0,0.30370948]
[1633131620985,0.13328699,48001.0,48000.0,0.27170948]
[1633131621654,0.13328699,48001.0,48000.0,0.30270948]
[1633131623053,0.13328699,48001.0,48000.0,0.27170948]
[1633131623655,0.13328699,48001.0,48000.0,0.30270948]
[1633131623855,0.13328699,48001.0,48000.0,0.68118017]
[1633131624058,0.06081771,48023.0,48007.0,0.21555982]
[1633131624261,1.46754308,48028.0,48011.0,0.00126668]
[1633131624262,0.05962876,48025.0,48011.0,0.00126668]
[1633131624458,0.05965195,48027.0,48012.0,0.01967467]
[1633131624659,0.520751,48028.0,48013.0,0.26781117]
[1633131624863,0.19974582,48024.0,48018.0,0.07101336]
[1633131625059,0.19974582,48024.0,48023.0,0.17359075]
[1633131625255,0.19974582,48024.0,48023.0,0.11320413]
[1633131625654,0.23174582,48024.0,48023.0,0.13520413]
[1633131626055,0.23174582,48024.0,48023.0,0.15633803]
[1633131626255,0.33174582,48024.0,48023.0,0.15633803]
[1633131626456,0.34847375,48024.0,48023.0,0.15633803]
[1633131626857,0.34847375,48024.0,48023.0,0.13433803]
[1633131627056,0.31647375,48024.0,48023.0,0.13433803]
[1633131627657,0.34847375,48024.0,48023.0,0.15533803]
[1633131628057,0.34847375,48024.0,48023.0,0.0421339]
[1633131628658,0.34847375,48024.0,48023.0,0.20242381]
[1633131628857,0.31647375,48024.0,48023.0,0.18142381]
[1633131629258,0.11672793,48024.0,48023.0,0.0211339]
[1633131629458,0.11672793,48024.0,48023.0,0.18192861]
[1633131629658,0.14772793,48024.0,48023.0,0.0461339]
[1633131630661,0.14772793,48024.0,48023.0,0.20528774]
[1633131631063,0.11672793,48024.0,48023.0,0.18028774]
[1633131631261,0.11672793,48024.0,48023.0,0.0211339]
[1633131631459,0.11672793,48024.0,48023.0,0.17443526]